{"text_format":"1","workbook":"xlsx","n_sheets":1,"sheets":["Beschaffungsübersicht"],"not_rendered":{"charts":0,"images":1,"macros":1,"external_links":0,"defined_names":2,"comments":0,"pivot_tables":0},"unopened":[],"bounds":{"document_bytes":16777216,"sheet_cells":100000,"rows_first":2000,"rows_last":500,"rows_between":2000,"halvings":0,"cell_chars":16384,"cell_head_chars":4096},"cells_cut":0,"cells_raw":0,"read":"whole","date_system":"1900"}

{"sheet":"Beschaffungsübersicht","index":0,"n_rows":29,"n_cols":22,"rows_kept":29,"cut":false,"hidden":false,"merged":[[26,0,28,0],[26,1,28,1],[20,11,20,13],[23,0,25,0],[23,1,25,1],[20,0,22,0],[20,1,22,1],[23,11,23,13],[26,11,26,13],[23,2,25,2],[26,2,28,2],[24,11,24,14],[27,11,27,14],[25,11,25,16],[28,11,28,16],[20,21,22,21],[17,11,17,13],[17,0,19,0],[17,1,19,1],[17,2,19,2],[17,18,19,18],[20,18,22,18],[20,2,22,2],[22,11,22,16],[21,11,21,14],[13,18,13,21],[11,0,11,16],[26,18,28,18],[26,20,28,20],[26,21,28,21],[23,21,25,21],[23,20,25,20],[23,18,25,18],[14,18,16,18],[14,20,16,20],[14,21,16,21],[17,21,19,21],[17,20,19,20],[18,11,18,14],[19,11,19,16],[20,20,22,20],[7,0,7,1],[13,10,13,16],[14,0,16,0],[14,1,16,1],[14,2,16,2],[13,3,13,4],[14,11,14,13],[15,11,15,14],[16,11,16,16]]}
["BESCHAFFUNGSÜBERSICHT"]
["Dokumentation über die Anforderung drei vergleichbarer Angebote/durchgeführter Preisvergleiche für Bewilligungen bis 31.12.2019"]
["Für Zuwendungsempfänger,"]
["-","die kein öffentlicher Auftraggeber, Sektorenauftraggeber oder Konzessionsgeber nach § 99 ff. GWB sind und"]
["-","bei denen die Zuwendung oder bei Finanzierung durch mehrere Stellen der Gesamtbetrag der Zuwendung mehr als 50 Prozent der zuwendungsfähigen Gesamtausgaben der Maßnahme entspricht und"]
["-","bei denen der geschätzte Auftragswert größer 500,00 bis einschließlich 100.000,00 EUR ohne USt ist."]
[]
[]
["Antragsnummer"]
[]
["Hinweise:"]
["Bitte dokumentieren Sie jede Ihrer Beschaffungen mit dem bereitgestellten Formblatt und in der Beschaffungsübersicht. Geben Sie bei einer Angebotsanforderung den Anbietern Ihre Beschaffungskriterien bekannt. Wichtig ist, dass allen Anbietern dieselben Informationen vorliegen, um vergleichbare Angebote abgeben zu können. \nBei Einholung von Preisvergleichen dokumentieren Sie bitte mittels Katalog, Flyer, Telefonnotiz oder Ausdruck der Website o. ä., aus dem Datum, Preis und die für die Auftragserteilung ausschlaggebenden Beschaffungskriterien hervorgehen.\nDie Auftragserteilung erfolgt für das wirtschaftlichste Angebot. Sollte dies nicht das preisgünstigste Angebot sein, begründen Sie die Wirtschaftlichkeit bitte nachvollziehbar. Haben Sie weniger als drei Angebote angefordert bzw. Preisvergleiche eingeholt oder liegen trotz Aufforderung oder aus anderen Gründen weniger als drei Angebote bzw. Preisvergleiche vor, dokumentieren Sie dies in der letzten Spalte \"Begründung für die Auftragserteilung […]\"."]
[]
["lfd.\nNr.","Beschaffungs-\ngegenstand","geschätzter\nAuftragswert\nohne USt.\nin EUR","Anbieter, Adresse\n(mind. 3 angeben, falls mehr aufgefordert bzw. eingeholt wurden, sind alle weiteren auf einer separaten Anlage anzugeben)",null,"Anforderung der\nAngebote am\n(wenn nein, frei lassen)","Einholung der \nPreisver-\ngleiche am\n(wenn nein, frei lassen)","Angebotsbe-\ntrag / Preisver-\ngleichsbetrag\nohne USt.\nin EUR","Angebots-\ndatum / Preis-\nvergleich vom","Auftrags-\nerteilung \nam","Begründung für die Auftragserteilung und Art (z. B.: E-Mail, \nBestätigungsschreiben, Fax, Vertrag, mündliche Zusage), \nErfassung von Mehrleistung/Mehraufwand, ggf. Begründung für das Vorliegen \nvon weniger als drei Angeboten",null,null,null,null,null,null,null,"Validierungen"]
[null,null,null,1,null,null,null,null,null,null,"Auftrag erteilt:","Bitte eine Auswahl treffen!",null,null,null,"Mehrleistung/Mehraufwand:","NEIN",null,{"$f":"IF(AND($B15<>\"\",$C15=\"\"),1,0)","v":0},{"$f":"IF(AND(B15<>\"\",C15<>\"\",COUNTA(E15:E17)=0),1,IF($E15=\"\",0,IF(OR(AND($F15=\"\",$G15=\"\"),$H15=\"\",$I15=\"\"),1,0)))","v":0},{"$f":"IF(AND($B15<>\"\",COUNTA($E15:$E17)>0,COUNTA($J15:$J17)=0),1,0)","v":0},{"$f":"AND($B15<>\"\",COUNTA($E15:$E17)>0,OR($L15=\"\",$L15=\"Bitte eine Auswahl treffen!\"))+AND(COUNTA($E15:$E17)>0,$L15<>\"\",$L15<>\"Bitte eine Auswahl treffen!\",$L16=\"\")+AND($B15<>\"\",COUNTA($E15:$E17)>0,$L15=\"Nicht für preisgünstigstes Angebot. *\",$L17=\"\")+AND($Q15=\"JA\",$Q16=\"\")","v":0}]
[null,null,null,2,null,null,null,null,null,null,"Mittels (Art):",null,null,null,null,"Betrag der\nMehrleistung/ des\nMehraufwandes:",null,null,null,{"$f":"IF($E16=\"\",0,IF(OR(AND($F16=\"\",$G16=\"\"),$H16=\"\",$I16=\"\"),1,0))","v":0}]
[null,null,null,3,null,null,null,null,null,null,"* Wirtschaftlichkeit begründen:",null,null,null,null,null,null,null,null,0]
[1,null,null,1,null,null,null,null,null,null,"Auftrag erteilt:","Bitte eine Auswahl treffen!",null,null,null,"Mehrleistung/Mehraufwand:","NEIN",null,{"$f":"IF(AND($B18<>\"\",$C18=\"\"),1,0)","v":0},{"$f":"IF(AND(B18<>\"\",C18<>\"\",COUNTA(E18:E20)=0),1,IF($E18=\"\",0,IF(OR(AND($F18=\"\",$G18=\"\"),$H18=\"\",$I18=\"\"),1,0)))","v":0},{"$f":"IF(AND($B18<>\"\",COUNTA($E18:$E20)>0,COUNTA($J18:$J20)=0),1,0)","v":0},{"$f":"AND($B18<>\"\",COUNTA($E18:$E20)>0,OR($L18=\"\",$L18=\"Bitte eine Auswahl treffen!\"))+AND(COUNTA($E18:$E20)>0,$L18<>\"\",$L18<>\"Bitte eine Auswahl treffen!\",$L19=\"\")+AND($B18<>\"\",COUNTA($E18:$E20)>0,$L18=\"Nicht für preisgünstigstes Angebot. *\",$L20=\"\")+AND($Q18=\"JA\",$Q19=\"\")","v":0}]
[null,null,null,2,null,null,null,null,null,null,"Mittels (Art):",null,null,null,null,"Betrag der\nMehrleistung/ des\nMehraufwandes:",null,null,null,0]
[null,null,null,3,null,null,null,null,null,null,"* Wirtschaftlichkeit begründen:",null,null,null,null,null,null,null,null,0]
[2,null,null,1,null,null,null,null,null,null,"Auftrag erteilt:","Bitte eine Auswahl treffen!",null,null,null,"Mehrleistung/Mehraufwand:","NEIN",null,{"$f":"IF(AND($B21<>\"\",$C21=\"\"),1,0)","v":0},{"$f":"IF(AND(B21<>\"\",C21<>\"\",COUNTA(E21:E23)=0),1,IF($E21=\"\",0,IF(OR(AND($F21=\"\",$G21=\"\"),$H21=\"\",$I21=\"\"),1,0)))","v":0},{"$f":"IF(AND($B21<>\"\",COUNTA($E21:$E23)>0,COUNTA($J21:$J23)=0),1,0)","v":0},{"$f":"AND($B21<>\"\",COUNTA($E21:$E23)>0,OR($L21=\"\",$L21=\"Bitte eine Auswahl treffen!\"))+AND(COUNTA($E21:$E23)>0,$L21<>\"\",$L21<>\"Bitte eine Auswahl treffen!\",$L22=\"\")+AND($B21<>\"\",COUNTA($E21:$E23)>0,$L21=\"Nicht für preisgünstigstes Angebot. *\",$L23=\"\")+AND($Q21=\"JA\",$Q22=\"\")","v":0}]
[null,null,null,2,null,null,null,null,null,null,"Mittels (Art):",null,null,null,null,"Betrag der\nMehrleistung/ des\nMehraufwandes:",null,null,null,0]
[null,null,null,3,null,null,null,null,null,null,"* Wirtschaftlichkeit begründen:",null,null,null,null,null,null,null,null,0]
[3,null,null,1,null,null,null,null,null,null,"Auftrag erteilt:","Bitte eine Auswahl treffen!",null,null,null,"Mehrleistung/Mehraufwand:","NEIN",null,{"$f":"IF(AND($B24<>\"\",$C24=\"\"),1,0)","v":0},{"$f":"IF(AND(B24<>\"\",C24<>\"\",COUNTA(E24:E26)=0),1,IF($E24=\"\",0,IF(OR(AND($F24=\"\",$G24=\"\"),$H24=\"\",$I24=\"\"),1,0)))","v":0},{"$f":"IF(AND($B24<>\"\",COUNTA($E24:$E26)>0,COUNTA($J24:$J26)=0),1,0)","v":0},{"$f":"AND($B24<>\"\",COUNTA($E24:$E26)>0,OR($L24=\"\",$L24=\"Bitte eine Auswahl treffen!\"))+AND(COUNTA($E24:$E26)>0,$L24<>\"\",$L24<>\"Bitte eine Auswahl treffen!\",$L25=\"\")+AND($B24<>\"\",COUNTA($E24:$E26)>0,$L24=\"Nicht für preisgünstigstes Angebot. *\",$L26=\"\")+AND($Q24=\"JA\",$Q25=\"\")","v":0}]
[null,null,null,2,null,null,null,null,null,null,"Mittels (Art):",null,null,null,null,"Betrag der\nMehrleistung/ des\nMehraufwandes:",null,null,null,0]
[null,null,null,3,null,null,null,null,null,null,"* Wirtschaftlichkeit begründen:",null,null,null,null,null,null,null,null,0]
[4,null,null,1,null,null,null,null,null,null,"Auftrag erteilt:","Bitte eine Auswahl treffen!",null,null,null,"Mehrleistung/Mehraufwand:","NEIN",null,{"$f":"IF(AND($B27<>\"\",$C27=\"\"),1,0)","v":0},{"$f":"IF(AND(B27<>\"\",C27<>\"\",COUNTA(E27:E29)=0),1,IF($E27=\"\",0,IF(OR(AND($F27=\"\",$G27=\"\"),$H27=\"\",$I27=\"\"),1,0)))","v":0},{"$f":"IF(AND($B27<>\"\",COUNTA($E27:$E29)>0,COUNTA($J27:$J29)=0),1,0)","v":0},{"$f":"AND($B27<>\"\",COUNTA($E27:$E29)>0,OR($L27=\"\",$L27=\"Bitte eine Auswahl treffen!\"))+AND(COUNTA($E27:$E29)>0,$L27<>\"\",$L27<>\"Bitte eine Auswahl treffen!\",$L28=\"\")+AND($B27<>\"\",COUNTA($E27:$E29)>0,$L27=\"Nicht für preisgünstigstes Angebot. *\",$L29=\"\")+AND($Q27=\"JA\",$Q28=\"\")","v":0}]
[null,null,null,2,null,null,null,null,null,null,"Mittels (Art):",null,null,null,null,"Betrag der\nMehrleistung/ des\nMehraufwandes:",null,null,null,0]
[null,null,null,3,null,null,null,null,null,null,"* Wirtschaftlichkeit begründen:",null,null,null,null,null,null,null,null,0]